bitfinex/quotes_BTCUSD_20250809
["timestamp","ask_amount","ask_price","bid_price","bid_amount"]
[1754730249982,0.17073587,117140.0,117130.0,0.13288]
[1754730250186,0.17282587,117140.0,117130.0,0.13288]
[1754730250405,0.17592587,117140.0,117130.0,0.13288]
[1754730251736,0.17075044,117130.0,117120.0,0.20907812]
[1754730251956,0.17284044,117130.0,117120.0,0.21122812]
[1754730252545,0.17594044,117130.0,117120.0,0.20907812]
[1754730252750,0.17594044,117130.0,117120.0,0.07619812]
[1754730252953,0.17594044,117130.0,117120.0,0.21007812]
[1754730253427,0.17594044,117130.0,117120.0,0.21322812]
[1754730254707,0.17284044,117130.0,117120.0,0.21322812]
[1754730255610,0.17594044,117130.0,117120.0,0.21322812]
[1754730255985,0.17594044,117130.0,117120.0,0.28322812]
[1754730257329,0.17075044,117130.0,117120.0,0.28318812]
[1754730257792,0.17284044,117130.0,117120.0,0.20699]
[1754730258001,0.17075044,117130.0,117120.0,0.20699]
[1754730258443,0.17284044,117130.0,117120.0,0.20699]
[1754730258789,0.17075044,117130.0,117120.0,0.20699]
[1754730259434,0.17284044,117130.0,117120.0,0.07415]
[1754730259635,0.17284044,117130.0,117120.0,0.20699]
[1754730261669,0.17284044,117130.0,117120.0,0.13699]
[1754730261880,0.17073684,117140.0,117120.0,0.94107252]
[1754730262072,0.17430847,117150.0,117140.0,0.17073587]
[1754730262280,0.17430847,117150.0,117140.0,0.30556587]
[1754730262680,0.17430847,117150.0,117140.0,0.30877587]
[1754730263443,0.17073587,117140.0,117130.0,0.07619812]
[1754730263659,0.17075044,117130.0,117120.0,0.20903812]
[1754730263810,0.17290044,117130.0,117120.0,0.13483]
[1754730265434,0.17075044,117130.0,117120.0,0.13804]
[1754730265645,0.17075044,117130.0,117120.0,0.21423812]
[1754730267157,0.17075044,117130.0,117120.0,0.21523812]
[1754730270581,0.17073587,117140.0,117120.0,0.806091]
[1754730270803,0.17073587,117140.0,117130.0,0.00321]
[1754730271042,0.17073587,117140.0,117130.0,0.26494693]
[1754730271219,0.17073587,117140.0,117130.0,0.33901067]
[1754730273303,0.17173587,117140.0,117130.0,0.33901067]
[1754730274209,0.17173587,117140.0,117130.0,0.34001067]
[1754730274660,0.17073587,117140.0,117130.0,0.16605023]
[1754730275019,0.17073587,117140.0,117130.0,0.16505023]
[1754730275273,0.17073587,117140.0,117130.0,0.16605023]
[1754730275830,0.17288587,117140.0,117130.0,0.16605023]
[1754730276037,0.17602587,117140.0,117130.0,0.16406023]
[1754730277102,0.17602587,117140.0,117130.0,0.07719812]
[1754730277300,0.17602587,117140.0,117130.0,0.001]
[1754730277486,0.17602587,117140.0,117130.0,0.07719812]
[1754730277689,0.17602587,117140.0,117130.0,0.001]
[1754730278309,0.17602587,117140.0,117130.0,0.07719812]
[1754730278736,0.17602587,117140.0,117130.0,0.07918812]
[1754730278935,0.17073587,117140.0,117130.0,0.08239812]
[1754730279654,0.17073587,117140.0,117130.0,0.07918812]
[1754730280726,0.17073587,117140.0,117130.0,0.08239812]
[1754730284077,0.17073587,117140.0,117130.0,0.07918812]
[1754730284688,0.17288587,117140.0,117130.0,0.07918812]
[1754730284892,0.17602587,117140.0,117130.0,0.07719812]
[1754730285123,0.17602587,117140.0,117130.0,0.001]
[1754730286136,0.30882587,117140.0,117130.0,0.001]
[1754730286597,0.33140587,117140.0,117130.0,0.001]
[1754730298581,0.17075044,117130.0,117120.0,0.07619812]
[1754730298789,0.17606044,117130.0,117120.0,0.07619812]
[1754730301474,0.17606044,117130.0,117120.0,0.07719812]
[1754730304868,0.17606044,117130.0,117120.0,0.001]
[1754730313941,0.17076502,117120.0,117110.0,0.20895812]
[1754730314180,0.17076502,117120.0,117110.0,0.21096812]
[1754730315567,0.17075044,117130.0,117110.0,0.80479558]
[1754730315782,0.17075044,117130.0,117110.0,0.88869769]
[1754730315997,0.17075044,117130.0,117120.0,0.00296]
[1754730316180,0.17075044,117130.0,117120.0,0.00497]
[1754730318125,0.17175044,117130.0,117120.0,0.00497]
[1754730318563,0.17175044,117130.0,117120.0,0.08116812]
[1754730318795,0.17175044,117130.0,117120.0,0.00497]
[1754730320375,0.17175044,117130.0,117120.0,0.00201]
[1754730320830,0.17388044,117130.0,117120.0,0.00201]
[1754730321673,0.17688044,117130.0,117120.0,0.00201]
[1754730322503,0.17076502,117120.0,117110.0,0.29582023]
[1754730322717,0.17589502,117120.0,117110.0,0.20895812]
[1754730324199,0.17589502,117120.0,117110.0,0.20995812]
[1754730330294,0.17589502,117120.0,117110.0,0.21209812]
[1754730331060,0.17589502,117120.0,117110.0,0.20995812]
[1754730334438,0.17589502,117120.0,117110.0,0.21209812]
[1754730334841,0.17289502,117120.0,117110.0,0.21209812]
[1754730340136,0.17589502,117120.0,117110.0,0.21209812]
[1754730340356,0.17076502,117120.0,117110.0,0.38287772]
[1754730340610,0.17075044,117130.0,117110.0,0.89291769]
[1754730340833,0.17075044,117130.0,117120.0,0.00309]
[1754730341047,0.17075044,117130.0,117120.0,0.00214]
[1754730341465,0.17075044,117130.0,117120.0,0.17290502]
[1754730342310,0.17075044,117130.0,117120.0,0.24910314]
[1754730342531,0.17175044,117130.0,117120.0,0.24910314]
[1754730342763,0.001,117130.0,117120.0,0.24910314]
[1754730342994,0.17175044,117130.0,117120.0,0.25219314]
[1754730343882,0.001,117130.0,117120.0,0.25219314]
[1754730346651,0.001,117130.0,117120.0,0.24910314]
[1754730348106,0.001,117130.0,117120.0,0.75914311]
[1754730348324,0.001,117130.0,117120.0,1.02294499]
[1754730348500,0.001,117130.0,117120.0,1.129574]
[1754730348931,0.17072481,117150.0,117130.0,0.17073907]
[1754730349138,0.17285481,117150.0,117140.0,0.13646]
[1754730349568,0.17585481,117150.0,117140.0,0.13646]
[1754730349877,0.17585481,117150.0,117140.0,0.30719587]
[1754730350376,0.17585481,117150.0,117140.0,0.13646]
[1754730350797,0.17585481,117150.0,117140.0,0.13432]
[1754730351546,0.17073587,117140.0,117130.0,0.21070133]
[1754730351968,0.17075044,117130.0,117120.0,0.0765629]
[1754730352172,0.17291044,117130.0,117120.0,0.2108029]
[1754730352378,0.17594044,117130.0,117120.0,0.2108029]
[1754730353304,0.17594044,117130.0,117120.0,0.2128029]
[1754730355560,0.17594044,117130.0,117120.0,0.2108029]
[1754730355996,0.17594044,117130.0,117120.0,0.2118029]
[1754730357248,0.17594044,117130.0,117120.0,0.2128029]
[1754730357665,0.17594044,117130.0,117120.0,0.13638157]
[1754730358830,0.17594044,117130.0,117120.0,0.13538157]
[1754730363974,0.17594044,117130.0,117120.0,0.2118029]
[1754730364259,0.17594044,117130.0,117120.0,0.13538157]
[1754730365048,0.17594044,117130.0,117120.0,0.2118029]
[1754730365212,0.17594044,117130.0,117120.0,0.13538157]
[1754730365433,0.17594044,117130.0,117120.0,0.2118029]
[1754730365837,0.17594044,117130.0,117120.0,0.13538157]
[1754730366346,0.17594044,117130.0,117120.0,0.2118029]
[1754730367356,0.19794587,117140.0,117120.0,0.38454792]
[1754730367550,0.19794587,117140.0,117120.0,0.80761578]
[1754730367551,0.17376587,117140.0,117120.0,0.80761578]
[1754730367825,0.20489987,117150.0,117130.0,0.5908383]
[1754730368067,0.20489987,117150.0,117140.0,0.13606]
[1754730368263,0.20705987,117150.0,117140.0,0.13606]
[1754730368780,0.21008987,117150.0,117140.0,0.13606]
[1754730369737,0.21108987,117150.0,117140.0,0.13606]
[1754730370799,0.21308987,117150.0,117140.0,0.13606]
[1754730371284,0.18745087,117150.0,117140.0,0.13606]
[1754730372761,0.18745087,117150.0,117140.0,0.13408]
[1754730373207,0.18745087,117150.0,117130.0,0.38121177]
[1754730373429,0.18745087,117150.0,117130.0,0.80129963]
[1754730373656,0.18745087,117150.0,117130.0,0.80427963]
[1754730374078,0.18545087,117150.0,117130.0,0.80427963]
[1754730374286,0.18745087,117150.0,117130.0,0.80427963]
[1754730374709,0.18645087,117150.0,117130.0,0.80427963]
[1754730375402,0.18845087,117150.0,117130.0,0.80427963]
[1754730375932,0.18845087,117150.0,117140.0,0.00198]
[1754730376145,0.004,117150.0,117140.0,0.59578373]
[1754730376355,0.004,117150.0,117140.0,0.33897931]
[1754730376537,0.004,117150.0,117140.0,0.75906717]
[1754730377188,0.002,117150.0,117140.0,0.75906717]
[1754730377404,0.002,117150.0,117140.0,0.76006717]
[1754730377615,0.17070691,117160.0,117150.0,0.17072129]
[1754730377821,0.17589691,117160.0,117150.0,0.30662129]
[1754730379080,0.17689691,117160.0,117150.0,0.30662129]
[1754730381453,0.001,117160.0,117150.0,0.30662129]
[1754730381675,0.001,117160.0,117150.0,0.72670915]
[1754730382097,0.001,117160.0,117150.0,0.30662129]
[1754730382309,0.001,117160.0,117150.0,0.72670915]
[1754730382923,0.001,117160.0,117150.0,0.30662129]
[1754730383153,0.001,117160.0,117150.0,0.72670915]
[1754730384611,0.001,117160.0,117150.0,0.30662129]
[1754730384800,0.001,117160.0,117150.0,0.72670915]
[1754730385064,0.001,117160.0,117150.0,0.72977915]
[1754730385279,0.001,117160.0,117150.0,0.30969129]
[1754730385488,0.001,117160.0,117150.0,0.72977915]
[1754730386403,0.001,117160.0,117150.0,0.30969129]
[1754730386638,0.001,117160.0,117150.0,0.72977915]
[1754730387655,0.001,117160.0,117150.0,0.89306259]
[1754730388311,0.001,117160.0,117150.0,0.47297473]
[1754730388512,0.001,117160.0,117150.0,0.89506259]
[1754730389330,0.17069221,117170.0,117160.0,0.17070672]
[1754730389520,0.17069221,117170.0,117160.0,0.59293458]
[1754730390158,0.17069221,117170.0,117160.0,0.00214]
[1754730390361,0.17587221,117170.0,117160.0,0.00214]
[1754730390566,0.17591938,117170.0,117160.0,0.00314]
[1754730391298,0.17591938,117170.0,117160.0,0.17384672]
[1754730392092,0.17591938,117170.0,117160.0,0.00314]
[1754730392326,0.17591938,117170.0,117160.0,0.001]
[1754730395254,0.17591938,117170.0,117160.0,0.01460615]
[1754730395670,0.17591938,117170.0,117160.0,0.001]
[1754730411552,4.717e-05,117170.0,117160.0,0.57551598]
[1754730411763,4.717e-05,117170.0,117160.0,0.89359313]
[1754730411983,4.717e-05,117170.0,117160.0,0.97001446]
[1754730412747,4.717e-05,117170.0,117160.0,0.89359313]
[1754730412970,4.717e-05,117170.0,117160.0,1.00022214]
[1754730414772,4.717e-05,117170.0,117160.0,0.79013006]
[1754730415350,4.717e-05,117170.0,117160.0,1.05593006]
[1754730416729,4.717e-05,117170.0,117160.0,1.81555228]
[1754730417157,4.717e-05,117170.0,117160.0,1.84117628]
[1754730417538,7.17e-06,117170.0,117160.0,1.84117628]
[1754730417718,7.17e-06,117170.0,117160.0,1.73454727]
[1754730418480,7.17e-06,117170.0,117160.0,4.03395139]
[1754730418941,7.17e-06,117170.0,117160.0,4.18960023]
[1754730419163,7.17e-06,117170.0,117160.0,4.18660023]
[1754730419323,7.17e-06,117170.0,117160.0,4.19260023]
[1754730419522,7.17e-06,117170.0,117160.0,4.04095139]
[1754730420557,7.17e-06,117170.0,117160.0,4.03995139]
[1754730420710,7.17e-06,117170.0,117160.0,4.03395139]
[1754730420927,7.17e-06,117170.0,117160.0,4.06295139]
[1754730421128,7.17e-06,117170.0,117160.0,4.22060023]
[1754730422846,7.17e-06,117170.0,117160.0,4.06795139]
[1754730424208,7.17e-06,117170.0,117160.0,3.80215139]
[1754730425615,0.00337,117210.0,117200.0,0.17064846]
[1754730425770,0.00547718,117210.0,117200.0,0.81073279]
[1754730426821,0.00547718,117210.0,117200.0,0.39111057]
[1754730427198,0.00547718,117210.0,117200.0,0.81073279]
[1754730429251,0.00547718,117210.0,117200.0,0.39111057]
[1754730429691,0.00547718,117210.0,117200.0,0.81073279]
[1754730431914,0.00547718,117210.0,117200.0,0.81282279]
[1754730434860,0.00230718,117210.0,117200.0,0.81282279]
[1754730435084,0.00024718,117210.0,117200.0,0.81282279]
[1754730435561,0.00024718,117210.0,117200.0,0.39320057]
[1754730435838,0.00024718,117210.0,117200.0,0.81282279]
[1754730436085,0.00024718,117210.0,117200.0,0.81604279]
[1754730436322,0.00024718,117210.0,117200.0,1.08184279]
[1754730436799,0.00024718,117210.0,117200.0,1.20222057]
[1754730437000,0.00024718,117210.0,117200.0,1.62184279]
[1754730437676,0.00024718,117210.0,117200.0,1.62284279]
[1754730437894,0.00024718,117210.0,117200.0,1.62384279]
[1754730438855,0.00024718,117210.0,117200.0,1.62062279]
[1754730440930,0.00024718,117210.0,117200.0,1.20100057]
[1754730441153,0.00024718,117210.0,117200.0,1.62062279]
[1754730441379,0.00024718,117210.0,117200.0,1.62384279]
[1754730441877,0.00024718,117210.0,117200.0,1.69975707]
[1754730442559,0.00024718,117210.0,117200.0,1.69653707]
[1754730443450,0.00024718,117210.0,117200.0,1.27691485]
[1754730443674,0.00024718,117210.0,117200.0,1.69653707]
[1754730444919,0.00240718,117210.0,117200.0,1.69653707]
[1754730445563,0.00024718,117210.0,117200.0,1.69653707]
[1754730446185,0.00240718,117210.0,117200.0,1.69653707]
[1754730446746,0.00024718,117210.0,117200.0,1.69653707]
[1754730448243,0.00024718,117210.0,117200.0,1.69962707]
[1754730449075,0.00024718,117210.0,117200.0,1.62371279]
[1754730449936,0.00024718,117210.0,117200.0,1.62062279]
[1754730450175,0.00024718,117210.0,117200.0,1.69685401]
[1754730450589,0.00024718,117210.0,117200.0,1.27723179]
[1754730450802,0.00024718,117210.0,117200.0,1.69685401]
[1754730453523,0.00024718,117210.0,117200.0,1.62062279]
[1754730453714,0.00024718,117210.0,117200.0,1.69685904]
[1754730454805,0.00024718,117210.0,117200.0,1.90629856]
[1754730455286,0.00024718,117210.0,117200.0,1.83006231]
[1754730455935,0.00240718,117210.0,117200.0,1.83006231]
[1754730457028,0.00024718,117210.0,117200.0,1.83006231]
[1754730460646,0.00024718,117210.0,117200.0,1.9363423]
[1754730463697,0.00024718,117210.0,117200.0,2.25396317]
[1754730464333,0.00024718,117210.0,117200.0,2.14768318]
[1754730464535,0.00024718,117210.0,117200.0,2.14568318]
[1754730464741,0.00024718,117210.0,117200.0,2.14968318]
[1754730465097,0.00024718,117210.0,117200.0,2.15268318]
[1754730466039,8.374e-05,117210.0,117200.0,2.15268318]
[1754730466453,8.374e-05,117210.0,117200.0,1.20909057]
[1754730466687,8.374e-05,117210.0,117200.0,1.83815231]
[1754730468242,8.374e-05,117210.0,117200.0,1.84156831]
[1754730473374,8.374e-05,117210.0,117200.0,1.21250657]
[1754730473579,8.374e-05,117210.0,117200.0,1.84156831]
[1754730473980,2.838e-05,117210.0,117200.0,1.84156831]
[1754730474798,2.838e-05,117210.0,117200.0,2.15609918]
[1754730482147,0.0002,117220.0,117210.0,0.1706339]
[1754730482383,0.0022,117220.0,117210.0,1.12856816]
[1754730482626,0.00526,117220.0,117210.0,1.12643524]
[1754730483607,0.00526,117220.0,117210.0,1.17746918]
[1754730483810,0.00526,117220.0,117210.0,1.17946918]
[1754730484056,0.00526,117220.0,117210.0,0.86493831]
[1754730484594,0.00526,117220.0,117210.0,0.86693831]
[1754730486422,0.00526,117220.0,117210.0,1.13273831]
[1754730488353,0.0002,117220.0,117210.0,1.99233918]
[1754730488845,0.0002,117220.0,117210.0,1.88562169]
[1754730490193,6.777e-05,117220.0,117210.0,1.88562169]
[1754730490581,1e-08,117220.0,117210.0,2.21760158]
[1754730491061,1e-08,117220.0,117210.0,1.42665781]
[1754730491284,1e-08,117220.0,117210.0,2.05571955]
[1754730494326,1e-08,117220.0,117210.0,2.37025042]
[1754730494758,1e-08,117220.0,117210.0,2.05571955]
[1754730494960,1e-08,117220.0,117210.0,2.37025042]
[1754730495489,1e-08,117220.0,117210.0,2.05571955]
[1754730495707,1e-08,117220.0,117210.0,1.90307071]
[1754730496562,1e-08,117220.0,117210.0,2.21760158]
[1754730498207,0.0002,117230.0,117220.0,0.87697446]
[1754730498513,0.0002,117230.0,117220.0,2.15224865]
[1754730498716,0.0002,117230.0,117220.0,2.14916865]
[1754730498941,0.0002,117230.0,117220.0,2.15416865]
[1754730499149,0.0002,117230.0,117220.0,2.04753918]
[1754730499353,0.0002,117230.0,117220.0,1.83962347]
[1754730499756,0.0002,117230.0,117220.0,1.73300831]
[1754730499956,0.0002,117230.0,117220.0,1.83962347]
[1754730500284,0.0002,117230.0,117220.0,1.84062347]
[1754730500686,0.0002,117230.0,117220.0,2.15515434]
[1754730500890,0.0002,117230.0,117220.0,2.15823434]
[1754730501076,0.0002,117230.0,117220.0,2.31741918]
[1754730501277,0.0002,117230.0,117220.0,2.46741918]
[1754730502069,0.0002,117230.0,117220.0,2.62006802]
[1754730502612,0.0002,117230.0,117220.0,2.61906802]
[1754730502814,0.0002,117230.0,117220.0,2.62206802]
[1754730503899,0.0002,117230.0,117220.0,2.64198628]
[1754730504101,0.0002,117230.0,117220.0,2.62206802]
[1754730504404,0.0002,117230.0,117220.0,2.62306802]
[1754730504547,0.0002,117230.0,117220.0,2.47041918]
[1754730505164,0.00548,117230.0,117220.0,2.15077831]
[1754730505342,0.00548,117230.0,117220.0,2.46530918]
[1754730505946,0.00548,117230.0,117220.0,2.46729918]
[1754730506180,0.00193989,117240.0,117230.0,0.51060479]
[1754730506419,0.00407989,117240.0,117230.0,1.7319165]
[1754730506828,0.00407989,117240.0,117230.0,1.54760293]
[1754730507806,0.00407989,117240.0,117230.0,1.54860293]
[1754730508313,0.00721989,117240.0,117230.0,1.55060293]
[1754730509184,0.00721989,117240.0,117230.0,1.13146276]
[1754730509387,0.00721989,117240.0,117230.0,1.55060293]
[1754730509808,0.00721989,117240.0,117230.0,1.56223385]
[1754730510578,0.20175013,117240.0,117230.0,0.40513782]
[1754730510820,0.20175013,117240.0,117230.0,0.31062287]
[1754730511377,0.20175013,117240.0,117230.0,0.48122766]
[1754730511562,0.20175013,117240.0,117230.0,0.30762287]
[1754730512292,0.20175013,117240.0,117230.0,0.17458287]
[1754730512501,0.20175013,117240.0,117230.0,0.23153303]
[1754730512766,0.20175013,117240.0,117230.0,0.14467092]
[1754730512992,0.20175013,117240.0,117230.0,0.13304]
[1754730514176,0.20275013,117240.0,117230.0,0.13304]
[1754730514660,0.03215989,117240.0,117230.0,0.72278496]
[1754730514858,0.03215989,117240.0,117230.0,0.80964707]
[1754730515070,0.00607989,117240.0,117230.0,0.89088691]
[1754730515652,0.00607989,117240.0,117230.0,0.81479707]
[1754730515862,0.00293989,117240.0,117230.0,0.81479707]
[1754730516063,0.00293989,117240.0,117230.0,1.1567049]
[1754730516280,0.00507989,117240.0,117230.0,1.1587049]
[1754730516485,0.00507989,117240.0,117230.0,1.15555729]
[1754730516695,0.00407989,117240.0,117230.0,1.15555729]
[1754730517059,0.00407989,117240.0,117230.0,1.15655729]
[1754730517677,0.00407989,117240.0,117230.0,1.15971729]
[1754730518017,0.00193989,117240.0,117230.0,1.08359707]
[1754730518130,0.00193989,117240.0,117230.0,1.19010493]
[1754730518332,0.00193989,117240.0,117230.0,0.77096476]
[1754730518548,0.00193989,117240.0,117230.0,1.19010493]
[1754730525089,0.00407989,117240.0,117230.0,1.19010493]
[1754730525450,0.00407989,117240.0,117230.0,1.18694493]
[1754730526405,0.00721989,117240.0,117230.0,0.76581476]
[1754730528200,0.00407989,117240.0,117230.0,1.18495493]
[1754730528753,0.00407989,117240.0,117230.0,1.18694493]
[1754730528934,0.00193989,117240.0,117230.0,1.18694493]
[1754730529112,0.00193989,117240.0,117230.0,1.19010493]
[1754730532639,0.00193989,117240.0,117230.0,0.77096476]
[1754730532833,0.00193989,117240.0,117230.0,1.19010493]
[1754730533246,0.00193989,117240.0,117230.0,1.39010493]
[1754730535804,0.00193989,117240.0,117230.0,1.73010493]
[1754730536433,0.00193989,117240.0,117230.0,1.62359707]
[1754730536841,0.00193989,117240.0,117230.0,1.62885707]
[1754730537156,0.00067184,117240.0,117230.0,1.64630609]
[1754730539797,0.00079255,117240.0,117230.0,1.64630609]
[1754730540739,0.00280255,117240.0,117230.0,1.42561707]
[1754730540883,0.00079255,117240.0,117230.0,1.42854707]
[1754730541070,0.00079255,117240.0,117230.0,1.44599609]
[1754730544643,0.00079255,117240.0,117230.0,1.02685592]
[1754730544759,0.00079255,117240.0,117230.0,1.44599609]
[1754730545170,0.00027485,117240.0,117230.0,1.44599609]
[1754730549273,0.00027485,117240.0,117230.0,1.59599609]
[1754730549679,0.00027485,117240.0,117230.0,2.21513626]
[1754730549880,0.00027485,117240.0,117230.0,1.79599609]
[1754730550488,0.00027485,117240.0,117230.0,2.50879726]
[1754730550750,0.00027485,117240.0,117230.0,2.50779726]
[1754730550950,0.00027485,117240.0,117230.0,2.6634461]
[1754730551701,0.00027485,117240.0,117230.0,2.51079726]
[1754730551910,0.00027485,117240.0,117230.0,2.08965709]
[1754730552115,0.00027485,117240.0,117230.0,1.67051692]
[1754730552290,0.00027485,117240.0,117230.0,2.09265709]
[1754730552494,0.00027485,117240.0,117230.0,2.24530593]
[1754730553108,9.536e-05,117240.0,117230.0,2.24530593]
[1754730554749,0.00526,117260.0,117250.0,0.88693081]
[1754730554979,0.00526,117260.0,117250.0,3.07660309]
[1754730555212,0.00526,117260.0,117250.0,3.06812009]
[1754730556031,0.00526,117260.0,117250.0,3.07012009]
[1754730556253,0.00526,117260.0,117250.0,3.06912009]
[1754730556536,0.00526,117260.0,117250.0,3.07112009]
[1754730557561,0.00526,117260.0,117250.0,3.07012009]
[1754730557771,0.00526,117260.0,117250.0,3.09671909]
[1754730557973,0.00526,117260.0,117250.0,2.54175109]
[1754730558183,0.00526,117260.0,117250.0,2.05581699]
[1754730558590,0.00526,117260.0,117250.0,2.40472309]
[1754730560068,0.00526,117260.0,117250.0,1.95552392]
[1754730560272,0.00526,117260.0,117250.0,2.37466409]
[1754730560485,0.00526,117260.0,117250.0,2.64046409]
[1754730561109,0.00182092,117260.0,117250.0,2.64046409]
[1754730563077,0.00182092,117260.0,117250.0,2.84514409]
[1754730563898,0.00182092,117260.0,117250.0,3.18514409]
[1754730566324,0.00182092,117260.0,117250.0,3.38514409]
[1754730567641,0.00182092,117260.0,117250.0,3.41014409]
[1754730567871,0.00182092,117260.0,117250.0,3.56279293]
[1754730568694,0.00182092,117260.0,117250.0,3.41014409]
[1754730569277,0.000632,117260.0,117250.0,3.84884409]
[1754730569692,0.000632,117260.0,117250.0,3.84880409]
[1754730570823,0.000632,117260.0,117250.0,3.42966392]
[1754730571039,0.000632,117260.0,117250.0,3.84880409]
[1754730571355,0.000632,117260.0,117250.0,3.50764409]
[1754730574343,0.000632,117260.0,117250.0,3.92678426]
[1754730574872,0.000632,117260.0,117250.0,3.50764409]
[1754730575969,0.000632,117260.0,117250.0,3.66029293]
[1754730576619,0.000632,117260.0,117250.0,3.50760409]
[1754730577350,0.00021955,117260.0,117250.0,3.50760409]
[1754730577531,0.00021955,117260.0,117250.0,3.66025293]
[1754730579581,0.00021955,117260.0,117250.0,3.75009293]
[1754730583958,0.0002,117260.0,117250.0,3.75009293]
[1754730584121,0.0131,117280.0,117270.0,1.07690172]
[1754730584317,0.01563165,117280.0,117270.0,2.0881193]
[1754730584708,0.01563165,117280.0,117270.0,2.1104963]
[1754730585140,0.01253165,117280.0,117270.0,2.1104963]
[1754730585339,0.01253165,117280.0,117270.0,2.2625163]
[1754730585514,0.01663165,117280.0,117270.0,2.2604963]
[1754730585728,0.01863165,117280.0,117270.0,2.2604963]
[1754730586091,0.01553165,117280.0,117270.0,2.28622417]
[1754730586304,0.01247165,117280.0,117270.0,2.60388949]
[1754730586443,0.00231014,117280.0,117270.0,3.89522449]
[1754730586646,0.00031014,117280.0,117270.0,3.89522449]
[1754730586862,0.00275756,117290.0,117280.0,0.52798108]
[1754730587070,0.00287822,117290.0,117280.0,1.69717854]
[1754730587615,0.00287822,117290.0,117280.0,1.27803837]
[1754730587824,0.02751822,117290.0,117280.0,0.70396918]
[1754730588069,0.02751822,117290.0,117280.0,1.26058935]
[1754730588893,0.02951822,117290.0,117280.0,1.26058935]
[1754730589917,0.02951822,117290.0,117280.0,1.5261698]
[1754730591618,0.03146822,117290.0,117280.0,1.5261698]
[1754730591831,0.02871066,117290.0,117280.0,1.5261698]
[1754730592034,0.02871066,117290.0,117280.0,1.5313298]
[1754730592240,0.02871066,117290.0,117280.0,1.11218963]
[1754730592544,0.02871066,117290.0,117280.0,1.41959479]
[1754730592758,0.02871066,117290.0,117280.0,1.53131411]
[1754730593164,0.02871066,117290.0,117280.0,1.42475479]
[1754730593348,0.02871066,117290.0,117280.0,1.53131037]
[1754730593710,0.02871066,117290.0,117280.0,1.42475479]
[1754730594281,0.02871066,117290.0,117280.0,1.55690956]
[1754730594699,0.00212066,117290.0,117280.0,4.79544237]
[1754730594916,0.022377,117300.0,117290.0,0.71051752]
[1754730595120,0.022377,117300.0,117290.0,1.3563098]
[1754730595336,0.022377,117300.0,117290.0,1.46580665]
[1754730595724,0.022377,117300.0,117290.0,1.3593198]
[1754730595954,0.022377,117300.0,117290.0,1.62490025]
[1754730596337,0.022377,117300.0,117290.0,1.84727725]
[1754730596536,0.023377,117300.0,117290.0,1.84727725]
[1754730597378,0.023377,117300.0,117290.0,1.82490025]
[1754730598174,0.023377,117300.0,117290.0,1.40576008]
[1754730598375,0.023377,117300.0,117290.0,1.82490025]
[1754730598950,0.023377,117300.0,117290.0,1.40576008]
[1754730599206,0.023377,117300.0,117290.0,1.9312798]
[1754730599651,0.023377,117300.0,117290.0,1.51213963]
[1754730599989,0.023377,117300.0,117290.0,2.24763492]
[1754730600208,0.023377,117300.0,117290.0,2.14125537]
[1754730600649,0.023377,117300.0,117290.0,2.16463237]
[1754730601227,0.023377,117300.0,117290.0,2.27098918]
[1754730601661,0.023377,117300.0,117290.0,2.16463237]
[1754730602068,0.023377,117300.0,117290.0,1.7454922]
[1754730602283,0.023377,117300.0,117290.0,2.27097653]
[1754730604354,1.023377,117300.0,117290.0,2.27097653]
[1754730606427,1.025327,117300.0,117290.0,2.27129653]
[1754730607063,1.025327,117300.0,117290.0,2.47593653]
[1754730607476,1.025327,117300.0,117290.0,2.47589653]
[1754730607962,1.025327,117300.0,117290.0,2.47073653]
[1754730609602,1.025327,117300.0,117290.0,1.90159636]
[1754730609935,1.025327,117300.0,117290.0,2.32073653]
[1754730611512,1.025327,117300.0,117290.0,2.18281653]
[1754730611737,1.025327,117300.0,117290.0,2.32069653]
[1754730612228,1.025327,117300.0,117290.0,1.73100441]
[1754730613797,1.025327,117300.0,117290.0,1.59308441]
[1754730613978,1.025327,117300.0,117290.0,1.73100441]
[1754730614212,1.028127,117300.0,117290.0,1.73100441]
[1754730615537,1.025327,117300.0,117290.0,1.73100441]
[1754730615784,1.025327,117300.0,117290.0,1.31186424]
[1754730616006,1.025327,117300.0,117290.0,1.73100441]
[1754730617107,1.025327,117300.0,117290.0,1.31186424]
[1754730617497,1.028127,117300.0,117290.0,1.73100441]
[1754730617981,1.028127,117300.0,117290.0,1.38844441]
[1754730618180,1.050937,117300.0,117290.0,1.52628441]
[1754730621251,1.22143998,117300.0,117290.0,1.52636441]
[1754730622008,1.050937,117300.0,117290.0,1.52636441]
[1754730622159,1.22143998,117300.0,117290.0,0.76722424]
[1754730622569,1.22143998,117300.0,117290.0,0.66088008]
[1754730622772,1.22143998,117300.0,117290.0,1.08002025]
[1754730623168,1.22143998,117300.0,117290.0,1.15610921]
[1754730623911,1.22143998,117300.0,117290.0,0.30087107]
[1754730624727,1.22143998,117300.0,117290.0,0.16295107]
[1754730624964,1.22143998,117300.0,117290.0,0.30095107]
[1754730625965,1.22243998,117300.0,117290.0,0.30099107]
[1754730627284,1.22243998,117300.0,117290.0,0.22490211]
[1754730627930,0.17051752,117290.0,117280.0,0.07608896]
[1754730628057,0.17528752,117290.0,117280.0,0.30095107]
[1754730628251,0.19794752,117290.0,117280.0,0.30095107]
[1754730630454,0.19515752,117290.0,117280.0,0.72009124]
[1754730630882,0.19515752,117290.0,117280.0,0.8906233]
[1754730631477,0.19515752,117290.0,117280.0,0.47148313]
[1754730631685,0.19515752,117290.0,117280.0,0.8906233]
[1754730634337,0.19515752,117290.0,117280.0,0.47148313]
[1754730634535,0.19515752,117290.0,117280.0,0.8906233]
[1754730635865,0.00198,117290.0,117280.0,0.8927633]
[1754730636097,1.022377,117300.0,117290.0,0.17051752]
[1754730636338,1.19287998,117300.0,117290.0,0.8145598]
[1754730636558,1.022377,117300.0,117290.0,0.8196798]
[1754730636788,1.022377,117300.0,117290.0,1.1596798]
[1754730637025,1.022377,117300.0,117290.0,1.57082683]
[1754730637264,1.023377,117300.0,117290.0,1.0755977]
[1754730637540,1.023377,117300.0,117290.0,1.33550158]
[1754730638191,1.022377,117300.0,117290.0,1.33550158]
[1754730640933,1.022377,117300.0,117290.0,1.26602396]
[1754730643181,1.022377,117300.0,117290.0,1.46602396]
[1754730643402,1.022377,117300.0,117290.0,1.04688379]
[1754730643621,1.022377,117300.0,117290.0,1.49161796]
[1754730646798,1.022377,117300.0,117290.0,1.07247779]
[1754730647032,1.022377,117300.0,117290.0,1.49161796]
[1754730648271,1.022377,117300.0,117290.0,1.07247779]
[1754730648490,1.022377,117300.0,117290.0,1.65797308]
[1754730649572,1.024357,117300.0,117290.0,1.61417006]
[1754730649790,1.022377,117300.0,117290.0,1.61417006]
[1754730651232,1.022377,117300.0,117290.0,1.19502989]
[1754730651440,1.022377,117300.0,117290.0,1.63161908]
[1754730652045,1.022377,117300.0,117290.0,1.89719953]